bitfinex-derivatives/quotes_BTCF0:USTF0_20240829
["timestamp","ask_amount","ask_price","bid_price","bid_amount"]
[1724960680795,0.373795,59654.0,59653.0,0.3618]
[1724960681188,0.734595,59654.0,59653.0,0.001]
[1724960681699,1.237515,59654.0,59653.0,0.001]
[1724960682296,0.734595,59654.0,59653.0,0.001]
[1724960682794,0.734595,59654.0,59649.0,0.00025143]
[1724960682997,0.3754,59653.0,59649.0,0.00025143]
[1724960683494,0.3754,59653.0,59634.0,0.6508]
[1724960683495,0.29,59650.0,59634.0,0.3608]
[1724960683697,0.3608,59641.0,59634.0,0.3608]
[1724960683899,0.1225,59640.0,59634.0,0.3608]
[1724960684696,0.1225,59640.0,59634.0,0.3628]
[1724960684996,0.29,59638.0,59634.0,0.002]
[1724960685193,0.444622,59635.0,59631.0,0.00025143]
[1724960685401,0.29,59632.0,59631.0,0.00025143]
[1724960685892,0.29,59632.0,59627.0,0.3608]
[1724960685893,0.373826,59632.0,59627.0,0.3608]
[1724960686099,0.373826,59632.0,59614.0,0.444651]
[1724960686100,0.081831,59629.0,59614.0,0.444651]
[1724960686292,0.3608,59623.0,59614.0,0.3608]
[1724960686489,0.29,59616.0,59614.0,0.3608]
[1724960686690,0.083842,59621.0,59607.0,0.3608]
[1724960686691,0.3608,59617.0,59607.0,0.3608]
[1724960686894,0.29,59610.0,59607.0,0.3608]
[1724960687291,0.00025143,59614.0,59607.0,0.3608]
[1724960687495,0.6508,59608.0,59600.0,0.3608]
[1724960687699,0.29,59603.0,59600.0,0.3608]
[1724960688188,0.3608,59608.0,59600.0,0.3608]
[1724960688396,0.29,59604.0,59600.0,0.3608]
[1724960688591,0.3608,59601.0,59594.0,0.3608]
[1724960688793,0.29,59600.0,59594.0,0.3608]
[1724960688990,0.29,59605.0,59594.0,0.3608]
[1724960689192,0.3608,59613.0,59604.0,0.3608]
[1724960689393,0.3608,59613.0,59606.0,0.083862]
[1724960689592,0.3608,59613.0,59604.0,0.3608]
[1724960689593,0.3608,59613.0,59607.0,0.093861]
[1724960689896,0.001,59617.0,59611.0,0.6508]
[1724960690099,0.3608,59627.0,59616.0,0.444649]
[1724960690296,0.29,59624.0,59616.0,0.444649]
[1724960690496,0.29,59620.0,59611.0,0.3608]
[1724960690692,0.29,59620.0,59610.0,0.083856]
[1724960690693,0.006,59613.0,59610.0,0.083856]
[1724960690995,0.006,59613.0,59612.0,0.3608]
[1724960691190,0.00025165,59617.0,59612.0,0.3608]
[1724960691494,0.00025165,59617.0,59616.0,0.001]
[1724960691995,0.36105165,59617.0,59616.0,0.001]
[1724960692195,0.86425165,59617.0,59604.0,0.36105165]
[1724960692399,0.3608,59609.0,59604.0,0.36105165]
[1724960692597,0.36,59605.0,59604.0,0.00025165]
[1724960692999,0.359,59605.0,59604.0,0.00025165]
[1724960693198,0.359,59605.0,59592.0,0.3608]
[1724960693396,0.3608,59599.0,59592.0,0.3608]
[1724960693696,0.7208,59599.0,59592.0,0.3608]
[1724960693901,0.3608,59594.0,59587.0,0.083889]
[1724960694098,0.1263,59598.0,59587.0,0.083889]
[1724960694299,0.3608,59594.0,59587.0,0.083889]
[1724960694490,0.12655165,59598.0,59587.0,0.083889]
[1724960695297,0.3608,59594.0,59587.0,0.083889]
[1724960695602,0.12655165,59598.0,59587.0,0.083889]
[1724960695805,0.12655165,59598.0,59592.0,0.01]
[1724960696198,0.12655165,59598.0,59587.0,0.083889]
[1724960696404,0.12755165,59598.0,59587.0,0.089889]
[1724960696603,0.00125165,59598.0,59587.0,0.006]
[1724960696795,0.00025165,59598.0,59586.0,0.3608]
[1724960697603,0.00125165,59598.0,59587.0,0.006]
[1724960697804,0.0319746,59598.0,59593.0,0.08388]
[1724960697996,0.0319746,59598.0,59594.0,0.083879]
[1724960699000,0.0319746,59598.0,59593.0,0.3608]
[1724960699205,0.0319746,59598.0,59597.0,0.083875]
[1724960699709,0.0329746,59598.0,59597.0,0.083875]
[1724960700206,0.0319746,59598.0,59597.0,0.083875]
[1724960700407,0.00125165,59598.0,59597.0,1.187235]
[1724960700605,0.3242,59618.0,59609.0,0.083857]
[1724960700807,0.00084,59621.0,59610.0,0.4818]
[1724960701004,0.03015775,59619.0,59618.0,0.3608]
[1724960701312,0.79037,59628.0,59618.0,0.3608]
[1724960701610,0.46020822,59628.0,59623.0,0.083837]
[1724960701909,0.083846,59618.0,59617.0,0.00025165]
[1724960702107,0.3608,59624.0,59617.0,0.00025165]
[1724960702299,0.444638,59624.0,59617.0,0.00025165]
[1724960702606,0.444638,59624.0,59618.0,0.001]
[1724960702994,0.444638,59624.0,59617.0,0.00025165]
[1724960703197,0.008,59618.0,59617.0,0.00125165]
[1724960703596,0.008,59618.0,59617.0,0.00025165]
[1724960703793,0.451638,59624.0,59618.0,0.001]
[1724960703991,0.3678,59624.0,59618.0,0.001]
[1724960704810,0.1176,59623.0,59618.0,0.001]
[1724960704998,0.3608,59619.0,59618.0,0.001]
[1724960705194,0.3608,59619.0,59617.0,0.00025165]
[1724960705398,0.083846,59618.0,59610.0,0.121]
[1724960706000,0.091846,59618.0,59617.0,0.001]
[1724960706400,0.090846,59618.0,59610.0,0.122]
[1724960706600,0.007,59618.0,59610.0,0.122]
[1724960706813,0.007,59618.0,59616.0,0.444649]
[1724960707104,0.009,59618.0,59616.0,0.444649]
[1724960707304,0.009,59618.0,59617.0,0.083847]
[1724960707811,0.009,59618.0,59617.0,0.211847]
[1724960708303,0.49138681,59625.0,59616.0,0.36268]
[1724960708505,0.3608,59620.0,59613.0,0.444652]
[1724960708710,0.009,59618.0,59616.0,0.001]
[1724960709111,0.36,59622.0,59615.0,0.08385]
[1724960709405,0.009,59618.0,59617.0,0.001]
[1724960709608,0.009,59618.0,59617.0,0.084847]
[1724960709909,0.01,59618.0,59617.0,0.083847]
[1724960710602,0.03079235,59625.0,59624.0,0.083837]
[1724960710812,0.43037,59628.0,59627.0,0.083833]
[1724960711506,0.43037,59628.0,59627.0,0.586953]
[1724960711715,0.43037,59628.0,59627.0,1.186953]
[1724960711899,0.03114975,59629.0,59627.0,1.186953]
[1724960711900,0.00025165,59629.0,59627.0,1.186953]
[1724960712203,0.03004301,59648.0,59629.0,0.08383]
[1724960712404,0.36,59666.0,59647.0,0.3608]
[1724960712605,0.083785,59661.0,59653.0,0.3608]
[1724960713000,0.36,59666.0,59653.0,0.444597]
[1724960713001,0.3898618,59666.0,59653.0,0.444597]
[1724960713307,0.083794,59655.0,59654.0,0.00025143]
[1724960714304,0.36,59660.0,59654.0,0.00025143]
[1724960716101,0.36,59660.0,59654.0,0.00125143]
[1724960716301,0.3608,59657.0,59654.0,0.00125143]
[1724960716706,0.38999169,59660.0,59654.0,0.00125143]
[1724960717211,0.02999169,59660.0,59654.0,0.00125143]
[1724960717409,0.3608,59664.0,59654.0,0.00125143]
[1724960717804,0.3608,59664.0,59654.0,0.00025143]
[1724960718010,0.36,59661.0,59654.0,0.00125143]
[1724960718412,0.36,59661.0,59654.0,0.00025143]
[1724960718613,0.36,59661.0,59654.0,0.00125143]
[1724960719006,0.3608,59659.0,59654.0,0.00125143]
[1724960719205,0.128,59660.0,59654.0,0.00125143]
[1724960720514,0.128,59660.0,59654.0,0.08504643]
[1724960720915,0.128,59660.0,59654.0,0.08404643]
[1724960721106,0.128,59660.0,59654.0,0.08504643]
[1724960722616,0.36,59655.0,59654.0,0.00125143]
[1724960723024,0.00088,59659.0,59654.0,0.00125143]
[1724960723314,0.128,59660.0,59654.0,0.00125143]
[1724960723715,0.128,59660.0,59657.0,0.083791]
[1724960723914,0.39168881,59664.0,59657.0,0.083791]
[1724960724317,0.03088881,59664.0,59663.0,0.3608]
[1724960724505,0.36,59667.0,59663.0,0.3608]
[1724960724914,0.1167,59670.0,59663.0,0.3608]
[1724960725210,0.3608,59681.0,59664.0,0.444581]
[1724960725414,0.1167,59680.0,59664.0,0.8636]
[1724960725716,0.1167,59680.0,59675.0,0.3608]
[1724960726314,0.36,59679.0,59675.0,0.3608]
[1724960726816,0.1167,59680.0,59675.0,0.3608]
[1724960727012,0.03053095,59681.0,59675.0,0.3608]
[1724960727211,0.00025143,59683.0,59680.0,0.3608]
[1724960728820,0.03104808,59683.0,59682.0,0.083756]
[1724960729211,0.03104808,59683.0,59680.0,0.3618]
[1724960730319,0.083756,59682.0,59680.0,0.001]
[1724960730713,0.083756,59682.0,59675.0,0.3608]
[1724960730918,0.7208,59676.0,59669.0,0.3608]
[1724960731218,0.083772,59671.0,59660.0,0.3608]
[1724960731425,0.1214,59670.0,59660.0,0.3608]
[1724960731922,0.205173,59670.0,59660.0,0.3608]
[1724960732321,0.3608,59665.0,59659.0,0.00025143]
[1724960732617,0.3608,59665.0,59650.0,0.00176]
[1724960732618,0.083792,59657.0,59644.0,0.083808]
[1724960732826,0.083792,59657.0,59643.0,0.3608]
[1724960732827,0.083796,59654.0,59643.0,0.3608]
[1724960733014,0.36,59656.0,59643.0,0.3608]
[1724960733414,0.3608,59660.0,59643.0,0.3608]
[1724960733616,0.36105143,59660.0,59647.0,0.083804]
[1724960734123,0.36105143,59660.0,59643.0,0.3608]
[1724960734124,0.36105143,59660.0,59648.0,0.444603]
[1724960735917,0.36105143,59660.0,59648.0,0.3608]
[1724960736113,0.39096571,59660.0,59654.0,0.3608]
[1724960737324,0.39096571,59660.0,59656.0,0.083792]
[1724960737524,0.39096571,59660.0,59658.0,0.08379]
[1724960737717,0.39096571,59660.0,59654.0,0.3608]
[1724960738022,0.39096571,59660.0,59654.0,0.084795]
[1724960738524,0.39096571,59660.0,59656.0,0.001]
[1724960739724,0.39096571,59660.0,59659.0,0.083788]
[1724960740020,0.39096571,59660.0,59659.0,0.444588]
[1724960740021,0.03016571,59660.0,59659.0,0.444588]
[1724960740228,0.03016571,59660.0,59659.0,1.547428]
[1724960740419,0.03016571,59660.0,59659.0,0.947428]
[1724960740827,0.03016571,59660.0,59659.0,0.3608]
[1724960741017,0.11395271,59660.0,59656.0,0.001]
[1724960741218,0.12795271,59660.0,59656.0,0.002]
[1724960741533,0.083791,59657.0,59656.0,0.001]
[1724960741715,0.444591,59657.0,59656.0,0.001]
[1724960742627,0.083795,59655.0,59647.0,0.3608]
[1724960742832,0.122,59654.0,59647.0,0.3608]
[1724960743925,0.122,59654.0,59647.0,0.3618]
[1724960744429,0.7208,59650.0,59647.0,0.001]
[1724960744731,0.7208,59650.0,59629.0,0.3213]
[1724960744732,0.083812,59642.0,59630.0,0.03091467]
[1724960745034,0.3608,59636.0,59630.0,0.03091467]
[1724960745434,0.7198,59641.0,59630.0,0.03091467]
[1724960745635,0.7198,59641.0,59629.0,0.08383]
[1724960745941,0.8454,59641.0,59629.0,0.08383]
[1724960746242,0.8454,59641.0,59630.0,0.002]
[1724960746739,0.1256,59641.0,59630.0,0.002]
[1724960747043,0.00025143,59642.0,59640.0,0.083815]
[1724960748046,0.00025143,59642.0,59638.0,0.3608]
[1724960748236,0.7208,59640.0,59633.0,0.3608]
[1724960748745,0.209616,59639.0,59630.0,0.008]
[1724960749048,0.083818,59638.0,59630.0,0.008]
[1724960749545,0.083818,59638.0,59630.0,0.002]
[1724960750449,0.083818,59638.0,59629.0,0.08383]
[1724960750645,0.083818,59638.0,59630.0,0.006]
[1724960751145,0.083818,59638.0,59629.0,0.08383]
[1724960751344,0.083818,59638.0,59630.0,0.006]
[1724960751948,0.7208,59634.0,59630.0,0.006]
[1724960752251,0.7208,59634.0,59613.0,0.3608]
[1724960752252,0.08383,59630.0,59613.0,0.3608]
[1724960752544,0.3608,59614.0,59605.0,0.083864]
[1724960752736,0.3608,59608.0,59602.0,0.3213]
[1724960752937,0.3608,59608.0,59602.0,0.35100604]
[1724960753143,0.3608,59608.0,59599.0,0.083872]
[1724960753338,0.353,59609.0,59599.0,0.083872]
[1724960753540,0.7138,59609.0,59602.0,0.3608]
[1724960754147,0.7208,59603.0,59592.0,0.3213]
[1724960754449,0.7208,59603.0,59583.0,0.9027]
[1724960754450,0.3608,59595.0,59589.0,0.083886]
[1724960754758,0.3608,59595.0,59585.0,0.4483]
[1724960754759,0.00025164,59598.0,59592.0,0.083882]
[1724960755053,0.00025164,59598.0,59591.0,0.3608]
[1724960755251,0.00025164,59598.0,59597.0,0.444675]
[1724960756060,0.0295269,59608.0,59597.0,1.49440611]
[1724960756348,0.804643,59620.0,59607.0,0.083861]
[1724960756349,0.7208,59620.0,59607.0,0.083861]
[1724960756548,0.083848,59617.0,59607.0,0.083861]
[1724960756756,0.006,59609.0,59604.0,0.3608]
[1724960757340,0.39038432,59610.0,59604.0,0.3608]
[1724960757543,0.40338432,59610.0,59607.0,0.001]
[1724960757952,0.008,59609.0,59607.0,0.001]
[1724960758657,0.008,59609.0,59608.0,0.08386]
[1724960759140,0.018,59609.0,59608.0,0.08386]
[1724960759547,0.01,59609.0,59608.0,0.08386]
[1724960759754,0.03458432,59610.0,59609.0,0.083858]
[1724960760151,0.02958432,59610.0,59609.0,0.083858]
[1724960760348,0.00025164,59612.0,59611.0,0.083856]
[1724960760654,0.083835,59626.0,59616.0,0.083848]
[1724960760853,0.36,59625.0,59615.0,0.3608]
[1724960761048,0.083852,59614.0,59609.0,0.3608]
[1724960761356,0.005,59610.0,59609.0,0.7226]
[1724960761651,0.005,59610.0,59609.0,0.806458]
[1724960761851,0.019,59610.0,59609.0,0.807458]
[1724960762655,0.00646402,59610.0,59609.0,1.909738]
[1724960762858,0.00646402,59610.0,59609.0,2.353596]
[1724960763249,0.00646402,59610.0,59609.0,2.269738]
[1724960764050,0.01146402,59610.0,59609.0,2.354596]
[1724960764250,0.00025164,59615.0,59614.0,0.167702]
[1724960764451,0.00025164,59615.0,59614.0,0.888502]
[1724960764646,0.00025164,59615.0,59614.0,1.907891]
[1724960765153,6.4e-07,59615.0,59614.0,1.991742]
[1724960765659,0.00200064,59615.0,59614.0,1.991742]
[1724960766156,0.00200064,59615.0,59614.0,1.907891]
[1724960766359,0.00200064,59615.0,59614.0,1.307891]
[1724960766552,0.00200064,59615.0,59614.0,1.907891]
[1724960766861,6.4e-07,59615.0,59614.0,1.907891]
[1724960767056,6.4e-07,59615.0,59614.0,1.307891]
[1724960767357,6.4e-07,59615.0,59614.0,1.907891]
[1724960767860,6.4e-07,59615.0,59614.0,0.947891]
[1724960768560,0.00500064,59615.0,59614.0,0.948891]
[1724960768945,0.00500064,59615.0,59614.0,1.548891]
[1724960769151,0.00500064,59615.0,59614.0,0.948891]
[1724960769558,0.00500064,59615.0,59614.0,1.548891]
[1724960769758,0.00400064,59615.0,59614.0,0.949891]
[1724960770251,0.00400064,59615.0,59614.0,0.445651]
[1724960770756,0.00400064,59615.0,59614.0,0.3618]
[1724960770757,0.08785064,59615.0,59614.0,0.3618]
[1724960771556,0.08885064,59615.0,59614.0,0.3618]
[1724960772260,0.08885064,59615.0,59614.0,0.3608]
[1724960772261,0.08385064,59615.0,59614.0,0.3608]
[1724960772556,0.08385064,59615.0,59614.0,0.3618]
[1724960772759,0.08385064,59615.0,59614.0,0.3628]
[1724960773055,6.4e-07,59615.0,59614.0,0.3618]
[1724960773357,6.4e-07,59615.0,59614.0,0.3628]
[1724960773951,0.03024862,59615.0,59614.0,0.3628]
[1724960774554,0.03024862,59615.0,59614.0,0.002]
[1724960774555,0.39104862,59615.0,59614.0,0.002]
[1724960774750,0.89428862,59615.0,59604.0,0.00025164]
[1724960774955,0.3608,59609.0,59604.0,0.00025164]
[1724960775152,0.083853,59613.0,59604.0,0.00025164]
[1724960775646,0.72164,59614.0,59610.0,0.083857]
[1724960775647,0.36164,59614.0,59610.0,0.083857]
[1724960775953,0.03024862,59615.0,59610.0,0.083857]
[1724960776551,0.7208,59611.0,59604.0,0.00025164]
[1724960776747,0.7208,59611.0,59586.0,0.3608]
[1724960776748,0.083872,59600.0,59586.0,0.3608]
[1724960776950,0.3608,59597.0,59586.0,0.3608]
[1724960777156,0.3608,59597.0,59584.0,0.3608]
[1724960777353,0.3608,59597.0,59591.0,0.3608]
[1724960777558,0.3598,59597.0,59591.0,0.3608]
[1724960777859,0.3598,59597.0,59588.0,0.00025164]
[1724960778466,0.083877,59596.0,59588.0,0.00025164]
[1724960779154,0.083887,59589.0,59588.0,0.00025164]
[1724960779350,0.3608,59592.0,59588.0,0.003]
[1724960779554,0.38828656,59597.0,59588.0,0.003]
[1724960779754,0.38828656,59597.0,59588.0,0.009]
[1724960779954,0.38828656,59597.0,59588.0,0.092888]
[1724960780865,0.38828656,59597.0,59588.0,0.089888]
[1724960781062,0.38828656,59597.0,59588.0,0.092888]
[1724960781268,0.38828656,59597.0,59588.0,0.086888]
[1724960781469,0.001,59589.0,59588.0,0.092888]
[1724960781661,0.001,59589.0,59588.0,0.089888]
[1724960781862,0.001,59589.0,59588.0,0.007]
[1724960782061,0.083881,59594.0,59588.0,0.001]
[1724960782265,0.444687,59589.0,59588.0,0.001]
[1724960782764,0.3638,59589.0,59588.0,0.001]
[1724960783160,0.3608,59589.0,59588.0,0.001]
[1724960783361,0.086881,59594.0,59588.0,0.001]
[1724960783864,0.006,59589.0,59587.0,0.00025164]
[1724960784464,0.3608,59592.0,59587.0,0.00025164]
[1724960784866,0.003,59589.0,59587.0,0.00025164]
[1724960785074,0.086888,59589.0,59587.0,0.00025164]
[1724960785467,0.086888,59589.0,59578.0,0.3608]
[1724960785468,0.083896,59583.0,59578.0,0.3608]
[1724960785673,0.3705,59582.0,59575.0,0.3608]
[1724960786060,0.36,59580.0,59575.0,0.3608]
[1724960786262,0.3705,59582.0,59575.0,0.3608]
[1724960786767,0.3705,59582.0,59577.0,0.083903]
[1724960787162,0.3705,59582.0,59578.0,0.005]
[1724960787471,0.443901,59579.0,59578.0,0.005]
[1724960787867,0.36,59579.0,59575.0,0.3608]
[1724960788063,0.08391,59573.0,59562.0,0.083923]
[1724960788378,0.3608,59576.0,59560.0,0.3626]
[1724960788379,0.3528,59570.0,59560.0,0.3626]
[1724960788669,0.3528,59570.0,59560.0,0.444727]
[1724960788670,0.36,59569.0,59560.0,0.444727]
[1724960788985,0.358,59569.0,59560.0,0.3608]
[1724960789468,0.08392,59566.0,59560.0,0.3608]
[1724960789664,0.1222,59565.0,59560.0,0.3748]
[1724960789967,0.36,59563.0,59560.0,0.3748]
[1724960790163,0.083932,59557.0,59556.0,0.3608]
[1724960790363,0.36,59557.0,59547.0,0.3608]
[1724960790683,0.00025186,59558.0,59549.0,0.083943]
[1724960790860,0.00025186,59558.0,59556.0,0.3608]
[1724960791466,0.00025186,59558.0,59557.0,0.083932]
[1724960793072,0.00625186,59558.0,59557.0,0.083932]
[1724960793569,0.01325186,59558.0,59557.0,0.083932]
[1724960794161,0.00625186,59558.0,59556.0,0.3608]
[1724960794365,0.36,59557.0,59547.0,0.6839]
[1724960794569,0.01525186,59558.0,59555.0,0.3608]
[1724960795575,0.001,59557.0,59555.0,0.3608]
[1724960796162,0.01325186,59558.0,59555.0,0.3608]
[1724960797176,0.01125186,59558.0,59556.0,0.001]
[1724960797470,0.01125186,59558.0,59557.0,0.083932]
[1724960797774,0.00025186,59558.0,59557.0,0.083932]
[1724960797975,0.00625186,59558.0,59557.0,0.083932]
[1724960798366,0.01125186,59558.0,59557.0,0.083932]
[1724960798572,0.00525186,59558.0,59557.0,0.083932]
[1724960798869,0.00525186,59558.0,59536.0,0.083961]
[1724960798870,0.083944,59548.0,59536.0,0.083961]
[1724960799072,0.083956,59540.0,59530.0,0.3608]
[1724960799374,0.00025186,59541.0,59535.0,0.3608]
[1724960799566,0.00025186,59541.0,59540.0,0.3608]
[1724960799770,0.00025186,59541.0,59540.0,0.444756]
[1724960799968,0.00824532,59550.0,59546.0,0.083947]
[1724960800172,0.00824532,59550.0,59549.0,0.3608]
[1724960800475,0.001,59548.0,59545.0,0.3608]
[1724960800865,0.001,59548.0,59546.0,0.5038]
[1724960801073,0.00025186,59552.0,59551.0,0.08394]
[1724960801270,0.00025186,59552.0,59551.0,0.44474]
[1724960801470,0.00025186,59552.0,59551.0,1.5485]
[1724960802372,0.00025186,59552.0,59551.0,0.9485]
[1724960802576,0.08419086,59552.0,59551.0,0.3608]
[1724960802976,0.08419086,59552.0,59545.0,0.3608]
[1724960802977,1.20195086,59552.0,59534.0,0.02965461]
[1724960803184,1.20195086,59552.0,59532.0,0.1219]
[1724960803185,0.7208,59540.0,59532.0,0.1219]
[1724960803573,0.804756,59540.0,59532.0,0.1219]
[1724960803971,1.308636,59540.0,59530.0,0.3608]
[1724960804180,0.36,59533.0,59530.0,0.3608]
[1724960805469,0.361,59533.0,59530.0,0.3618]
[1724960806276,0.3917676,59533.0,59530.0,0.3618]
[1724960806471,0.3608,59531.0,59530.0,0.001]
[1724960806677,0.3608,59531.0,59523.0,0.3608]
[1724960806873,0.36,59525.0,59523.0,0.3608]
[1724960807579,0.36,59525.0,59515.0,0.1236]
[1724960807776,0.36,59525.0,59520.0,0.3608]
[1724960807984,0.359,59525.0,59520.0,0.3608]
[1724960808379,0.36,59525.0,59520.0,0.3608]
[1724960808880,0.001,59525.0,59524.0,0.083978]
[1724960809281,0.3608,59536.0,59533.0,0.083965]
[1724960809484,0.00025186,59537.0,59535.0,0.083962]
[1724960809689,0.00025186,59537.0,59536.0,0.083961]
[1724960810387,0.03096511,59537.0,59534.0,0.1284]
[1724960810583,0.3608,59535.0,59534.0,0.1284]
[1724960811286,0.3608,59535.0,59525.0,0.3213]
[1724960811490,0.36,59528.0,59525.0,0.3213]
[1724960811874,0.36,59534.0,59525.0,0.3213]
[1724960812484,0.36,59534.0,59530.0,0.083969]
[1724960813086,0.36,59534.0,59531.0,0.083968]
[1724960813588,0.39025823,59534.0,59531.0,0.083968]
[1724960813889,0.083966,59533.0,59527.0,0.083974]
[1724960814091,0.39025823,59534.0,59528.0,0.083971]
[1724960814385,0.3608,59529.0,59528.0,0.083971]
[1724960814688,0.49222323,59534.0,59529.0,0.083971]
[1724960815076,0.004,59533.0,59529.0,0.083971]
[1724960815792,0.39625823,59534.0,59529.0,0.083971]
[1724960816089,0.03625823,59534.0,59533.0,0.083966]
[1724960816698,0.3608,59536.0,59524.0,0.3608]
[1724960816699,0.36,59535.0,59525.0,0.083977]
[1724960816888,0.007,59534.0,59525.0,0.083977]
[1724960817083,0.007,59534.0,59524.0,0.3608]
[1724960817084,0.083968,59532.0,59524.0,0.3608]
[1724960817580,0.007,59533.0,59528.0,0.083972]
[1724960818092,0.097964,59534.0,59528.0,0.083972]
[1724960818387,0.083967,59532.0,59524.0,0.3608]
[1724960818787,0.083975,59526.0,59520.0,0.1273]
[1724960819096,0.36,59522.0,59518.0,0.04902603]
[1724960819280,0.3608,59519.0,59513.0,0.37032603]
[1724960819483,0.083995,59512.0,59511.0,0.00132]
[1724960819682,0.3608,59514.0,59505.0,0.04902603]
[1724960819882,0.3608,59506.0,59503.0,0.04902603]
[1724960820081,0.36,59502.0,59498.0,0.04902603]
[1724960820282,0.36,59502.0,59497.0,0.3608]
[1724960820882,0.36105208,59506.0,59497.0,0.3608]
[1724960821088,0.36105208,59506.0,59504.0,0.084006]
[1724960821286,0.444005,59505.0,59497.0,0.3608]
[1724960821484,0.36,59498.0,59497.0,0.3608]
[1724960821685,0.36,59498.0,59497.0,0.3618]
[1724960821886,0.36,59498.0,59490.0,0.04902603]
[1724960822190,0.3608,59495.0,59485.0,0.40982603]
[1724960822499,0.3608,59495.0,59486.0,0.084031]
[1724960822686,0.3608,59495.0,59487.0,0.08403]
[1724960822883,0.39087468,59498.0,59488.0,0.084028]
[1724960823186,0.39087468,59498.0,59485.0,0.3608]
[1724960823187,0.36,59493.0,59485.0,0.3608]
[1724960823591,0.36,59493.0,59486.0,0.084032]
[1724960823791,0.36,59493.0,59485.0,0.3608]
[1724960823792,0.444023,59493.0,59485.0,0.3608]
[1724960824289,0.444023,59493.0,59485.0,0.3478]
[1724960824483,0.001,59493.0,59490.0,0.3608]
[1724960824688,0.001,59493.0,59491.0,0.084024]
[1724960825794,0.001,59493.0,59492.0,0.444823]
[1724960825990,0.00025208,59497.0,59496.0,0.084018]
[1724960826196,0.36,59509.0,59496.0,0.3608]
[1724960826492,0.36,59509.0,59501.0,0.3608]
[1724960827095,0.444792,59515.0,59509.0,0.083998]
[1724960827096,0.804792,59515.0,59509.0,0.083998]
[1724960827284,0.00025208,59511.0,59510.0,0.083998]
[1724960829289,0.03070941,59511.0,59505.0,0.084005]
[1724960829496,0.3608,59510.0,59505.0,0.084005]
[1724960829788,0.3608,59510.0,59500.0,0.3608]
[1724960829987,0.3608,59510.0,59499.0,0.32155208]
[1724960829988,0.00025208,59511.0,59501.0,0.3608]
[1724960830191,0.00025208,59511.0,59506.0,0.084003]
[1724960830390,0.01225208,59511.0,59510.0,0.083998]
[1724960830994,0.00025208,59511.0,59510.0,0.083998]
[1724960831603,0.00025208,59511.0,59508.0,0.3608]
[1724960832097,0.00025208,59511.0,59509.0,0.083999]
[1724960832300,0.00025208,59511.0,59510.0,0.083998]
[1724960832499,0.01425208,59511.0,59510.0,0.083998]
[1724960833706,0.00025208,59511.0,59510.0,1.188118]
[1724960834005,0.01024088,59511.0,59510.0,1.66391614]
[1724960834504,0.01024088,59511.0,59510.0,0.97991814]
[1724960834696,0.01024088,59511.0,59510.0,1.57991814]
[1724960834896,0.01024088,59511.0,59510.0,0.948918]
[1724960835101,0.01024088,59511.0,59510.0,1.548918]
[1724960835302,0.00025208,59516.0,59515.0,0.083991]
[1724960835710,0.00025208,59516.0,59515.0,1.548871]
[1724960836007,0.00025208,59516.0,59515.0,0.948871]
[1724960836596,0.01425208,59516.0,59515.0,0.949871]
[1724960837208,0.01425208,59516.0,59515.0,1.633862]
[1724960838396,0.01425208,59516.0,59515.0,1.549871]
[1724960838609,0.00025208,59516.0,59515.0,1.548871]
[1724960838804,0.00025208,59516.0,59515.0,0.948871]
[1724960838805,0.00325208,59516.0,59515.0,0.948871]
[1724960839305,0.00925208,59516.0,59515.0,1.633862]
[1724960839607,0.00925208,59516.0,59515.0,1.763462]
[1724960840000,8e-08,59516.0,59515.0,1.892562]
[1724960840405,0.083964,59534.0,59530.0,0.083969]
[1724960840605,0.083967,59532.0,59530.0,0.083969]
[1724960840801,0.75106993,59535.0,59526.0,0.083975]
[1724960840999,0.083975,59526.0,59525.0,0.00025208]
[1724960841599,0.72176001,59529.0,59516.0,0.083988]
[1724960841901,0.3608,59523.0,59516.0,0.083988]
[1724960842103,0.0515638,59522.0,59516.0,0.083988]
[1724960842399,0.0515638,59522.0,59515.0,0.3608]
[1724960842595,0.0505638,59522.0,59515.0,0.3608]
[1724960842800,0.00025208,59524.0,59515.0,0.3608]
[1724960842801,0.08423108,59524.0,59515.0,0.3608]
[1724960843197,0.368,59523.0,59516.0,0.001]
[1724960843503,0.368,59523.0,59522.0,0.083981]
[1724960843504,0.008,59523.0,59522.0,0.083981]
[1724960843805,0.00025208,59524.0,59523.0,0.08398]
[1724960844201,0.00025208,59524.0,59523.0,0.58798]
[1724960845209,0.03269869,59524.0,59523.0,0.58798]
[1724960845608,0.03269869,59524.0,59523.0,0.67196]
[1724960845800,0.07383249,59524.0,59523.0,0.67196]
[1724960845998,0.08183249,59524.0,59523.0,1.27296]
[1724960846203,0.04938588,59524.0,59523.0,1.27296]
[1724960846604,8.8e-07,59524.0,59523.0,1.71774]
[1724960846814,0.15034895,59535.0,59534.0,0.167928]
[1724960847104,0.1335458,59535.0,59534.0,0.805564]
[1724960847295,0.13354094,59536.0,59534.0,1.909484]
[1724960847503,0.13354094,59537.0,59536.0,0.083961]
[1724960847802,0.13354094,59538.0,59537.0,0.08396]
[1724960848111,0.00025208,59542.0,59541.0,0.083954]
[1724960848310,0.00025208,59542.0,59541.0,0.444754]
[1724960848508,0.00025208,59542.0,59541.0,0.948594]
[1724960849610,0.00025208,59542.0,59541.0,0.949594]
[1724960850105,0.00025208,59542.0,59541.0,1.549594]
[1724960851305,0.00025208,59542.0,59541.0,0.445754]
[1724960851612,0.00025208,59542.0,59541.0,0.949594]
[1724960851811,0.00025208,59542.0,59541.0,1.549594]
[1724960852009,0.00025208,59542.0,59541.0,1.633548]